{"text_format":"1","workbook":"xlsx","n_sheets":5,"sheets":["بيانات العمال ","الحركه","نموذج","أحمد سعيد","هانى سلامة"],"not_rendered":{"charts":0,"images":0,"macros":1,"external_links":0,"defined_names":0,"comments":1,"pivot_tables":0},"unopened":[],"bounds":{"document_bytes":16777216,"sheet_cells":100000,"rows_first":2000,"rows_last":500,"rows_between":2000,"halvings":0,"cell_chars":16384,"cell_head_chars":4096},"cells_cut":0,"cells_raw":0,"read":"whole","date_system":"1900"}

{"sheet":"بيانات العمال ","index":0,"n_rows":1,"n_cols":9,"rows_kept":1,"cut":false,"hidden":false,"merged":[]}
["الاسم ","العنوان ","رقم التليفون ","رقم البطاقه ","اول مرتب ","اخر مرتب ","اخر ترقيه ","تاريخ بداية العمل ","ملاحظات "]

{"sheet":"الحركه","index":1,"n_rows":3,"n_cols":6,"rows_kept":3,"cut":false,"hidden":false,"merged":[]}
["الاسم ","حضور ","سحب ","خصم","ملاحظات ","التاريخ "]
["أحمد سعيد"]
["هانى سلامة"]

{"sheet":"نموذج","index":2,"n_rows":14,"n_cols":14,"rows_kept":14,"cut":false,"hidden":false,"merged":[[0,0,1,5]]}
[]
[]
["الاسم ","حضور","سحب ","خصم ","ملاحظات ","التاريخ"]
[]
[]
[null,null,null,null,null,null,null,null,null,"عدد ايام الحضور ",{"$f":"Table5[حضور]","v":0},null,"بداية المده "]
[null,null,null,null,null,null,null,null,null,"فئة المصروف",null,null,"نهاية المده "]
[null,null,null,null,null,null,null,null,null,"فئة المرتب",null,null,"السحب النقدى ",{"$f":"SUMIFS(C5:C400,F5:F400,\">=\"&N6,F5:F400,\"<=\"&N7)","v":0}]
[null,null,null,null,null,null,null,null,null,"حساب قديم ",null,null,"الخصم "]
[null,null,null,null,null,null,null,null,null,"ما له ",{"$f":"K6*K8/30","v":0},null,"المصروف "]
[null,null,null,null,null,null,null,null,null,"السحب النقدى ",{"$f":"Table5[[سحب ]]","v":0},null,"ما له خلال الفتره "]
[null,null,null,null,null,null,null,null,null,"المصروف اليومى ",{"$f":"K6*K7","v":0}]
[null,null,null,null,null,null,null,null,null,"الخصم ",{"$f":"Table5[[خصم ]]","v":0}]
[null,null,null,null,null,null,null,null,null,{"$f":"IF(K14>1,\"ما له\",IF(K14<1,\"ما عليه\"))","v":"ما عليه"},{"$f":"K10+K9-K11-K12-K13","v":0}]

{"sheet":"أحمد سعيد","index":3,"n_rows":14,"n_cols":14,"rows_kept":14,"cut":false,"hidden":false,"merged":[[0,0,1,5]]}
[null,null,null,null,null,null,null,null,null,"أحمد سعيد"]
[]
["الاسم ","حضور","سحب ","خصم ","ملاحظات ","التاريخ"]
[]
["أحمد سعيد","11:00:00",180,70,null,"2018-10-01"]
[null,null,null,null,null,null,null,null,null,"عدد ايام الحضور ",{"$f":"Table57[حضور]","v":{"$error":"#VALUE!"}},null,"بداية المده "]
[null,null,null,null,null,null,null,null,null,"فئة المصروف",null,null,"نهاية المده "]
[null,null,null,null,null,null,null,null,null,"فئة المرتب",null,null,"السحب النقدى ",{"$f":"SUMIFS(C5:C400,F5:F400,\">=\"&N6,F5:F400,\"<=\"&N7)","v":0}]
[null,null,null,null,null,null,null,null,null,"حساب قديم ",null,null,"الخصم "]
[null,null,null,null,null,null,null,null,null,"ما له ",{"$f":"K6*K8/30","v":{"$error":"#VALUE!"}},null,"المصروف "]
[null,null,null,null,null,null,null,null,null,"السحب النقدى ",{"$f":"Table57[[سحب ]]","v":{"$error":"#VALUE!"}},null,"ما له خلال الفتره "]
[null,null,null,null,null,null,null,null,null,"المصروف اليومى ",{"$f":"K6*K7","v":{"$error":"#VALUE!"}}]
[null,null,null,null,null,null,null,null,null,"الخصم ",{"$f":"Table57[[خصم ]]","v":{"$error":"#VALUE!"}}]
[null,null,null,null,null,null,null,null,null,{"$f":"IF(K14>1,\"ما له\",IF(K14<1,\"ما عليه\"))","v":{"$error":"#VALUE!"}},{"$f":"K10+K9-K11-K12-K13","v":{"$error":"#VALUE!"}}]

{"sheet":"هانى سلامة","index":4,"n_rows":14,"n_cols":14,"rows_kept":14,"cut":false,"hidden":false,"merged":[[0,0,1,5]]}
[null,null,null,null,null,null,null,null,null,"هانى سلامة"]
[]
["الاسم ","حضور","سحب ","خصم ","ملاحظات ","التاريخ"]
[]
["هانى سلامة","13:00:00",175,45,"تم الإرسال عبر البريد","2018-02-01"]
[null,null,null,null,null,null,null,null,null,"عدد ايام الحضور ",{"$f":"Table58[حضور]","v":{"$error":"#VALUE!"}},null,"بداية المده "]
[null,null,null,null,null,null,null,null,null,"فئة المصروف",null,null,"نهاية المده "]
[null,null,null,null,null,null,null,null,null,"فئة المرتب",null,null,"السحب النقدى ",{"$f":"SUMIFS(C5:C400,F5:F400,\">=\"&N6,F5:F400,\"<=\"&N7)","v":0}]
[null,null,null,null,null,null,null,null,null,"حساب قديم ",null,null,"الخصم "]
[null,null,null,null,null,null,null,null,null,"ما له ",{"$f":"K6*K8/30","v":{"$error":"#VALUE!"}},null,"المصروف "]
[null,null,null,null,null,null,null,null,null,"السحب النقدى ",{"$f":"Table58[[سحب ]]","v":{"$error":"#VALUE!"}},null,"ما له خلال الفتره "]
[null,null,null,null,null,null,null,null,null,"المصروف اليومى ",{"$f":"K6*K7","v":{"$error":"#VALUE!"}}]
[null,null,null,null,null,null,null,null,null,"الخصم ",{"$f":"Table58[[خصم ]]","v":{"$error":"#VALUE!"}}]
[null,null,null,null,null,null,null,null,null,{"$f":"IF(K14>1,\"ما له\",IF(K14<1,\"ما عليه\"))","v":{"$error":"#VALUE!"}},{"$f":"K10+K9-K11-K12-K13","v":{"$error":"#VALUE!"}}]